bitfinex/quotes_ETHUSD_20250223
["timestamp","ask_amount","ask_price","bid_price","bid_amount"]
[1740354806198,6.95773345,2833.9,2833.3,3.52943]
[1740354806199,0.005,2833.9,2833.3,3.52943]
[1740354806383,0.005,2833.9,2833.1,0.7747]
[1740354806384,3.53372,2833.9,2833.4,3.52925]
[1740354806592,0.6933803,2833.8,2833.4,3.52925]
[1740354806903,0.005,2833.9,2833.5,3.52919]
[1740354807106,0.005,2833.9,2833.8,3.52883]
[1740354807308,0.005,2833.9,2833.6,0.8207]
[1740354807507,0.005,2833.9,2833.8,3.52883]
[1740354808982,0.005,2833.9,2833.6,0.8207]
[1740354809215,3.53378,2833.9,2833.5,5.39]
[1740354809596,3.53377,2833.9,2833.5,5.39]
[1740354809975,0.005,2833.9,2833.5,8.91919]
[1740354810176,0.005,2833.9,2833.5,6.357359]
[1740354810384,0.005,2833.9,2833.5,9.886549]
[1740354810590,0.005,2833.9,2833.6,3.529]
[1740354811301,0.005,2833.9,2833.6,0.824]
[1740354811500,0.005,2833.9,2833.6,4.35307]
[1740354811707,0.005,2833.9,2833.7,1.0710429]
[1740354812177,3.53376,2833.9,2833.7,1.0710429]
[1740354812380,3.52895,2833.7,2833.6,0.824]
[1740354812798,3.52907,2833.6,2833.5,5.39]
[1740354813314,3.52895,2833.7,2833.5,5.39]
[1740354813697,0.005,2833.9,2833.5,5.39]
[1740354813898,0.005,2833.9,2833.5,8.91908]
[1740354814100,0.005,2833.9,2833.5,10.163913]
[1740354815118,3.52883,2833.8,2833.5,5.39]
[1740354815412,0.005,2833.9,2833.5,5.39]
[1740354815618,0.005,2833.9,2833.5,8.91911]
[1740354815826,0.005,2833.9,2833.6,0.8114]
[1740354816121,0.005,2833.9,2833.8,3.52883]
[1740354816323,0.005,2833.9,2833.8,4.315748]
[1740354816520,0.005,2833.9,2833.8,9.705748]
[1740354817929,0.005,2833.9,2833.8,6.176918]
[1740354818099,0.005,2833.9,2833.8,5.39]
[1740354818500,3.5337,2833.9,2833.8,5.39]
[1740354818824,0.005,2833.9,2833.8,5.39]
[1740354819028,3.5337,2833.9,2833.8,5.39]
[1740354819327,3.52907,2833.6,2833.5,5.39]
[1740354819529,3.52907,2833.7,2833.5,5.39]
[1740354819734,3.52883,2833.8,2833.5,5.39]
[1740354819895,3.52901,2833.7,2833.5,5.39]
[1740354820096,3.52883,2833.8,2833.5,5.39]
[1740354820293,3.52895,2833.7,2833.5,5.39]
[1740354820492,3.52883,2833.8,2833.5,5.39]
[1740354820907,3.52904,2833.7,2833.5,5.39]
[1740354821488,3.52907,2833.6,2833.5,5.39]
[1740354822549,7.65887645,2833.6,2832.8,5.39]
[1740354822729,3.52958,2833.2,2832.8,5.39]
[1740354823036,3.52976,2833.1,2832.8,5.39]
[1740354823211,3.52995,2832.9,2832.8,5.39]
[1740354824853,3.52983,2833.0,2832.5,5.39]
[1740354824854,3.53032,2832.6,2832.5,5.39]
[1740354825153,3.53019,2832.8,2832.5,5.39]
[1740354825301,3.52995,2832.9,2832.5,5.39]
[1740354825501,3.53021,2832.7,2832.5,5.39]
[1740354826148,3.53032,2832.6,2832.5,5.39]
[1740354827936,3.53056,2832.5,2832.0,5.39]
[1740354828155,0.26159583,2833.1,2832.0,5.39]
[1740354828156,3.53075,2832.3,2832.0,5.39]
[1740354828464,3.53075,2832.3,2832.0,6.360913]
[1740354828597,3.53075,2832.3,2832.0,5.39]
[1740354828803,3.53094,2832.1,2832.0,5.39]
[1740354830563,6.95488345,2832.1,2832.0,5.39]
[1740354830845,7.64703853,2832.1,2832.0,5.39]
[1740354831007,3.53178,2831.5,2831.2,0.7936]
[1740354831208,3.53178,2831.5,2831.2,6.8911818]
[1740354831443,3.53194,2831.3,2831.2,6.0975818]
[1740354831754,3.53175,2831.5,2831.2,6.0975818]
[1740354831957,3.53191,2831.4,2831.2,6.0975818]
[1740354832163,3.53194,2831.3,2831.2,6.0975818]
[1740354832508,3.53194,2831.3,2831.2,5.39]
[1740354833722,4.22814544,2831.3,2831.2,5.39]
[1740354833907,3.53257,2830.8,2830.7,6.1529]
[1740354834243,3.53257,2830.8,2830.7,5.39]
[1740354834602,3.53176,2831.5,2830.7,8.92268]
[1740354834817,3.53153,2831.7,2831.1,3.53213]
[1740354835066,3.53153,2831.7,2831.2,3.53201]
[1740354835425,3.53165,2831.6,2830.9,0.7741]
[1740354835622,3.53169,2831.5,2831.0,3.53228]
[1740354835824,7.0635,2831.5,2831.0,4.4053878]
[1740354836026,4.24604594,2831.7,2831.0,4.4053878]
[1740354836258,7.77758594,2831.7,2831.1,3.53209]
[1740354836520,6.53133,2831.8,2831.3,3.53191]
[1740354836969,3.0,2831.8,2831.2,5.39]
[1740354837153,0.70335363,2832.0,2831.3,3.53193]
[1740354837474,3.5314,2831.8,2831.2,9.90151378]
[1740354837658,3.53147,2831.7,2831.2,9.90151378]
[1740354838272,3.53131,2831.9,2831.3,3.53192]
[1740354838568,3.0,2832.1,2831.5,3.53162]
[1740354838769,3.53107,2832.0,2831.5,1.322833]
[1740354838973,3.53135,2831.8,2831.3,5.39]
[1740354839179,3.53156,2831.7,2831.3,5.39]
[1740354839476,3.5316,2831.6,2831.3,5.39]
[1740354840059,3.5314,2831.8,2831.3,5.39]
[1740354840262,3.53147,2831.7,2831.3,8.92187]
[1740354840782,3.0,2832.0,2831.4,4.3193]
[1740354840928,3.0,2832.1,2831.4,0.7875]
[1740354841196,3.0,2832.1,2831.3,5.39]
[1740354841413,6.53095,2832.1,2831.6,3.5315]
[1740354841609,3.78923675,2832.5,2831.4,0.7875]
[1740354841787,3.5301,2832.8,2832.3,3.53065]
[1740354842024,3.5301,2832.8,2832.2,3.53079]
[1740354842025,3.53029,2832.7,2832.2,3.53079]
[1740354842229,6.95358345,2833.2,2832.1,0.7875]
[1740354842544,3.53009,2832.8,2832.3,3.53063]
[1740354843188,3.53053,2832.5,2832.1,0.7875]
[1740354843422,3.53022,2832.7,2832.2,3.53081]
[1740354843629,3.53065,2832.4,2831.9,5.39]
[1740354844008,3.53057,2832.5,2832.0,3.53101]
[1740354844324,7.06111,2832.5,2832.0,3.53107]
[1740354844514,7.06108,2832.5,2832.0,3.53107]
[1740354844723,3.53054,2832.5,2832.0,3.53107]
[1740354846059,3.0,2832.8,2832.0,1.322696]
[1740354846207,0.1757253,2833.5,2832.3,3.53058]
[1740354846208,3.42394345,2833.2,2832.3,3.53058]
[1740354846409,6.95353345,2833.2,2832.2,3.53082]
[1740354846813,3.96750338,2833.1,2832.2,3.53082]
[1740354847011,3.53018,2832.8,2832.2,3.53082]
[1740354847438,3.53018,2832.8,2832.3,3.53069]
[1740354847947,3.5302,2832.7,2832.3,3.53069]
[1740354848253,3.531,2832.1,2831.9,5.39]
[1740354848588,3.53107,2832.0,2831.9,5.39]
[1740354849314,3.531,2832.1,2831.9,5.39]
[1740354849712,3.53107,2832.0,2831.9,5.39]
[1740354850097,3.53096,2832.1,2831.9,5.39]
[1740354851507,3.53107,2832.0,2831.9,5.39]
[1740354851739,3.53107,2832.0,2831.4,13.10143]
[1740354851740,3.53096,2832.1,2831.6,8.92151]
[1740354852051,3.0,2832.7,2831.8,0.7514]
[1740354852381,3.6856852,2833.1,2832.4,3.53049]
[1740354852382,3.52991,2833.0,2832.4,3.53049]
[1740354852515,4.25171322,2832.8,2832.3,0.7514]
[1740354852853,0.72162322,2832.8,2832.3,5.39]
[1740354853006,3.53002,2832.9,2832.3,5.39]
[1740354853408,3.53031,2832.7,2832.3,5.39]
[1740354853809,3.53008,2832.8,2832.3,8.92066]
[1740354854332,3.53042,2832.6,2832.3,5.39]
[1740354854711,3.53057,2832.4,2832.3,5.39]
[1740354855961,3.5304,2832.6,2832.3,5.39]
[1740354856262,6.53016,2832.8,2832.4,3.53056]
[1740354856427,0.70947272,2832.9,2832.5,3.53039]
[1740354857221,6.52963,2833.2,2832.3,5.39]
[1740354857537,3.79152175,2833.1,2832.5,3.53035]
[1740354857713,5.16603127,2833.1,2832.5,3.53035]
[1740354858061,5.16603127,2833.1,2832.6,3.5303]
[1740354858943,3.52985,2833.0,2832.6,3.5303]
[1740354859149,4.24745806,2833.0,2832.6,3.5303]
[1740354859313,4.24745806,2833.0,2832.4,3.53057]
[1740354859646,3.53007,2832.9,2832.4,3.53057]
[1740354859842,3.53013,2832.8,2832.3,5.39]
[1740354860058,3.5304,2832.6,2832.3,5.39]
[1740354860845,3.5302,2832.7,2832.3,5.39]
[1740354861255,3.53036,2832.6,2832.3,5.39]
[1740354861455,3.53028,2832.7,2832.3,5.39]
[1740354861675,3.53032,2832.6,2832.3,5.39]
[1740354862179,3.53008,2832.8,2832.3,5.39]
[1740354862378,3.53021,2832.7,2832.3,5.39]
[1740354862742,3.53049,2832.5,2832.3,5.39]
[1740354862947,3.53057,2832.4,2832.3,5.39]
[1740354863478,3.53027,2832.7,2832.1,3.53089]
[1740354863631,3.883427,2832.6,2832.1,3.53089]
[1740354863827,3.883427,2832.6,2832.0,8.92101]
[1740354863828,3.53094,2832.1,2832.0,5.39]
[1740354864047,3.5306,2832.4,2831.7,8.92135]
[1740354864048,3.53065,2832.4,2831.7,8.92135]
[1740354864278,3.53069,2832.3,2831.7,8.92135]
[1740354864579,3.53131,2831.9,2831.7,5.39]
[1740354864780,6.883367,2832.6,2832.0,3.53106]
[1740354864781,3.353027,2832.6,2832.0,3.53106]
[1740354864935,3.53061,2832.4,2831.9,3.53119]
[1740354865373,3.353027,2832.6,2831.8,4.33262]
[1740354865540,4.20822705,2832.5,2831.8,4.33262]
[1740354865872,4.23103405,2832.4,2831.9,3.53113]
[1740354866079,4.23103405,2832.4,2831.8,4.33261]
[1740354866080,3.53082,2832.2,2831.8,4.33261]
[1740354866230,3.53119,2831.9,2831.7,5.39]
[1740354866578,3.75316976,2832.3,2831.6,0.8013]
[1740354866779,3.53135,2831.8,2831.4,5.39]
[1740354866944,3.53116,2832.0,2831.4,5.39]
[1740354867147,3.53126,2831.9,2831.4,9.896384]
[1740354867445,3.53116,2832.0,2831.4,6.364634]
[1740354867647,3.53091,2832.2,2831.7,3.53138]
[1740354868461,7.0618,2832.2,2831.7,3.53138]
[1740354868785,3.53089,2832.2,2831.7,3.53137]
[1740354869977,3.26228765,2832.3,2831.5,3.53165]
[1740354870182,0.26228765,2832.3,2832.1,3.53092]
[1740354870380,0.26228765,2832.3,2832.0,3.53099]
[1740354870587,0.26228765,2832.3,2831.7,8.92144]
[1740354870740,3.79305765,2832.3,2831.8,3.53126]
[1740354870941,7.32386765,2832.3,2831.8,3.53126]
[1740354871538,3.53091,2832.2,2831.7,5.39]
[1740354871734,1.06471682,2832.3,2831.7,5.39]
[1740354871735,3.53132,2831.8,2831.7,5.39]
[1740354872694,3.53182,2831.4,2831.3,0.7507]
[1740354872899,3.53189,2831.4,2831.1,5.39]
[1740354873184,3.0,2831.8,2831.1,5.39]
[1740354873336,3.53177,2831.5,2831.1,5.39]
[1740354873540,3.0,2831.8,2831.1,5.39]
[1740354873739,0.72303136,2831.9,2831.6,3.53154]
[1740354873982,2.99608803,2832.3,2831.5,0.7666]
[1740354874185,5.25,2832.5,2832.0,3.53104]
[1740354874186,8.7805,2832.5,2832.0,3.53104]
[1740354874362,3.0,2832.5,2832.1,3.53088]
[1740354874562,6.26421038,2832.6,2832.0,4.29764]
[1740354874891,3.53057,2832.4,2832.0,0.7666]
[1740354875088,7.06122,2832.4,2832.0,0.7666]
[1740354875388,3.53057,2832.4,2832.0,0.7666]
[1740354875595,3.53072,2832.3,2832.0,0.7666]
[1740354876244,4.23141472,2832.4,2832.0,0.7666]
[1740354877471,0.70081472,2832.4,2832.0,0.7666]
[1740354877656,3.0,2832.8,2832.1,3.53088]
[1740354877657,3.0,2832.7,2832.1,3.53088]
[1740354877862,3.53034,2832.6,2832.1,3.53088]
[1740354878824,3.53034,2832.6,2832.0,1.735371]
[1740354879129,3.53076,2832.3,2832.0,0.7666]
[1740354879829,7.06131,2832.4,2832.0,0.7666]
[1740354880228,3.53064,2832.4,2832.0,0.7666]
[1740354880530,3.53064,2832.4,2832.0,4.29765]
[1740354881581,3.53014,2832.8,2832.2,3.5307]
[1740354881780,3.53014,2832.8,2832.2,4.313524]
[1740354882283,4.24949117,2832.8,2832.4,0.7839]
[1740354882500,3.0,2832.9,2832.4,0.7839]
[1740354882501,3.52995,2832.9,2832.4,0.7839]
[1740354883146,3.53013,2832.8,2832.4,0.7839]
[1740354883703,3.53013,2832.8,2832.2,0.782824]
[1740354883704,3.5304,2832.6,2832.2,0.782824]
[1740354883904,3.5304,2832.6,2832.0,3.53099]
[1740354884132,3.53051,2832.5,2831.9,9.70811]
[1740354884348,3.53067,2832.4,2831.9,9.70811]
[1740354884544,3.53098,2832.1,2831.9,6.177]
[1740354885598,3.53083,2832.2,2831.9,6.177]
[1740354887239,3.53083,2832.2,2831.9,0.787]
[1740354887531,3.53115,2832.0,2831.7,6.1879]
[1740354887835,3.53126,2831.9,2831.7,6.1879]
[1740354887999,3.53163,2831.6,2831.0,0.7979]
[1740354888199,7.06329,2831.6,2831.1,3.53219]
[1740354888397,7.06329,2831.6,2831.1,8.92219]
[1740354888624,3.53169,2831.5,2831.1,8.92219]
[1740354888840,3.53169,2831.5,2831.1,5.39]
[1740354888998,6.26502038,2831.9,2831.1,5.39]
[1740354888999,3.53182,2831.4,2831.1,5.39]
[1740354889204,3.53184,2831.4,2831.1,5.39]
[1740354890542,3.53201,2831.3,2831.1,5.39]
[1740354891538,4.25117901,2831.5,2831.1,5.39]
[1740354891751,3.53182,2831.4,2831.1,5.39]
[1740354893558,3.53207,2831.2,2831.1,5.39]
[1740354893707,3.53206,2831.3,2831.1,5.39]
[1740354893907,3.53206,2831.3,2831.0,0.7979]
[1740354893908,3.53207,2831.2,2831.0,0.7979]
[1740354894240,7.06408,2831.3,2830.8,9.69346]
[1740354894399,7.06405,2831.3,2830.8,9.69346]
[1740354894799,3.53202,2831.3,2830.8,9.69346]
[1740354895039,7.06408,2831.3,2830.8,9.69346]
[1740354895215,7.25116901,2831.5,2830.9,3.5324]
[1740354895420,3.53189,2831.4,2830.9,4.854986]
[1740354895808,3.53189,2831.4,2830.9,1.322586]
[1740354896001,4.25108901,2831.5,2830.9,4.855016]
[1740354896340,3.53135,2831.8,2831.3,4.32267]
[1740354896763,3.53149,2831.7,2831.3,4.32267]
[1740354897050,3.53135,2831.8,2831.3,0.7908]
[1740354897350,3.53176,2831.5,2831.3,0.7908]
[1740354897570,3.53186,2831.4,2831.0,0.7671]
[1740354897856,0.70306804,2831.6,2830.8,9.68965]
[1740354897857,3.53204,2831.3,2830.8,9.68965]
[1740354898666,7.06406,2831.3,2830.8,9.68965]
[1740354898822,6.26559038,2831.5,2830.8,6.1571]
[1740354899162,0.70306804,2831.6,2830.9,0.758]
[1740354899344,0.25876612,2832.0,2831.6,3.53156]
[1740354899665,0.25876612,2832.0,2831.6,3.5315]
[1740354899960,3.53121,2831.9,2831.5,0.758]
[1740354900371,0.9839714,2832.0,2831.8,3.53129]
[1740354900671,3.53041,2832.6,2832.1,3.53094]
[1740354900868,3.53004,2832.9,2832.2,4.29775]
[1740354901071,3.53002,2832.9,2832.2,9.68775]
[1740354901365,0.71692652,2832.8,2832.2,6.157]
[1740354901535,3.53069,2832.3,2832.2,5.39]
[1740354902859,3.0,2832.5,2832.2,5.39]
[1740354903156,4.51430842,2832.8,2832.3,4.2976]
[1740354903522,3.5302,2832.7,2832.3,0.767]
[1740354904650,7.51429842,2832.8,2832.3,4.29767]
[1740354904825,3.53039,2832.6,2832.3,0.767]
[1740354905020,3.53023,2832.7,2832.3,0.767]
[1740354905650,7.06053,2832.7,2832.3,0.767]
[1740354905859,7.06051,2832.7,2832.3,0.767]
[1740354906156,3.53023,2832.7,2832.3,0.767]
[1740354907862,7.06053,2832.7,2832.3,0.767]
[1740354908163,3.53042,2832.6,2832.2,5.39]
[1740354909054,3.53031,2832.7,2832.2,8.92081]
[1740354909657,3.53031,2832.7,2832.3,0.8317]
[1740354910169,0.26887652,2832.9,2832.3,1.806951]
[1740354910373,0.26887652,2832.9,2832.6,3.53025]
[1740354910763,3.52969,2833.2,2832.7,3.53011]
[1740354911228,3.52969,2833.2,2832.8,0.8044]
[1740354912479,3.52989,2833.0,2832.8,0.8044]
[1740354912683,3.52989,2833.0,2832.5,0.8044]
[1740354912684,3.53021,2832.7,2832.5,0.8044]
[1740354912887,3.53004,2832.9,2832.5,0.8044]
[1740354913182,0.26943359,2833.0,2832.5,4.33474]
[1740354913684,4.2329101,2833.1,2832.6,3.53032]
[1740354913685,0.7032101,2833.1,2832.6,3.53032]
[1740354913880,0.7032101,2833.1,2832.5,0.8044]
[1740354914030,0.97430881,2833.1,2832.8,3.53003]
[1740354914231,0.97430881,2833.1,2832.8,3.53]
[1740354914581,0.97430881,2833.1,2832.7,3.53013]
[1740354914934,0.97430881,2833.1,2832.6,4.14965]
[1740354915135,4.50400881,2833.1,2832.6,4.14965]
[1740354915347,0.97430881,2833.1,2832.8,3.53005]
[1740354915879,0.97430881,2833.1,2832.9,3.52989]
[1740354916079,0.97430881,2833.1,2832.9,7.05976]
[1740354916381,0.27184138,2833.2,2833.0,0.7887]
[1740354916560,3.52909,2833.6,2833.0,4.31851]
[1740354916765,3.52922,2833.5,2833.0,7.84826]
[1740354916964,3.52922,2833.5,2833.0,9.172086]
[1740354917159,3.0,2833.5,2833.1,3.5296]
[1740354917363,3.0,2833.5,2833.2,3.52953]
[1740354917665,0.72073728,2833.5,2833.2,3.52953]
[1740354918049,3.52895,2833.7,2833.3,0.8287]
[1740354918254,7.05797,2833.7,2833.3,0.8287]
[1740354918454,7.05801,2833.7,2833.3,0.8287]
[1740354918783,3.52913,2833.6,2833.3,0.8287]
[1740354919334,4.22815321,2833.6,2833.3,0.8287]
[1740354919684,0.69902321,2833.6,2833.3,0.8287]
[1740354919980,0.96484371,2833.6,2833.3,2.156474]
[1740354920183,3.52837,2834.2,2833.3,2.156474]
[1740354920184,4.16727101,2835.5,2834.7,3.5276]
[1740354920390,4.16727101,2835.5,2833.9,0.55]
[1740354920391,3.52701,2835.3,2834.4,3.52802]
[1740354920537,3.0,2835.3,2834.4,0.435232]
[1740354920739,3.52739,2835.0,2834.4,3.52801]
[1740354920982,3.52739,2835.0,2834.5,3.52793]
[1740354921293,3.52739,2835.0,2834.4,3.52801]
[1740354921671,3.52739,2835.0,2834.4,3.528]
[1740354921864,3.5276,2834.8,2834.3,0.8243]
[1740354922432,3.5276,2834.8,2834.3,4.35245]
[1740354922678,3.4776,2834.8,2834.3,4.35245]
[1740354923035,3.5274,2835.0,2834.5,3.52784]
[1740354923764,3.44286723,2835.1,2834.3,5.67958]
[1740354923970,3.44286723,2835.1,2834.3,0.8243]
[1740354923971,3.52751,2834.9,2834.3,0.8243]
[1740354924190,6.97009723,2835.1,2834.3,7.8806]
[1740354924337,0.1520181,2835.2,2834.1,5.39]
[1740354924338,0.1520181,2835.2,2834.4,0.8319]
[1740354924532,0.1520181,2835.2,2834.8,3.52749]
[1740354924850,0.1520181,2835.2,2835.0,3.52731]
[1740354925192,0.1520181,2835.2,2835.1,3.52721]
[1740354925341,0.1520181,2835.2,2835.1,4.33851]
[1740354925541,0.1520181,2835.2,2835.1,10.515092]
[1740354926644,0.1520181,2835.2,2835.1,9.72851]
[1740354926852,0.1520181,2835.2,2835.1,6.2013]
[1740354927047,0.1520181,2835.2,2835.1,9.72851]
[1740354927244,0.1520181,2835.2,2835.1,6.2013]
[1740354927443,3.6790981,2835.2,2835.1,5.39]
[1740354928158,0.1520181,2835.2,2835.1,5.39]
[1740354928975,3.6790981,2835.2,2835.1,5.39]
[1740354929146,3.52794,2834.6,2834.4,0.7795]
[1740354929348,3.52778,2834.7,2834.4,0.7795]
[1740354929549,3.25371929,2835.2,2834.4,0.7795]
[1740354929751,3.52759,2834.8,2834.4,0.7795]
[1740354929968,3.0,2835.1,2834.5,3.52792]
[1740354930373,3.6791681,2835.2,2834.8,3.52757]
[1740354930542,3.6791681,2835.2,2834.5,3.52795]
[1740354930742,3.52722,2835.1,2834.5,3.52795]
[1740354931084,3.52722,2835.1,2834.6,3.52774]
[1740354931271,3.52744,2835.0,2834.4,4.30748]
[1740354931494,3.52749,2834.9,2834.4,5.277228]
[1740354931917,3.52744,2835.0,2834.4,5.277228]
[1740354931918,3.52783,2834.6,2834.4,0.7795]
[1740354932081,3.52783,2834.6,2833.8,5.39]
[1740354932082,3.5287,2833.9,2833.8,5.39]
[1740354932290,3.52907,2833.6,2833.5,5.39]
[1740354933079,3.52901,2833.7,2833.5,5.39]
[1740354933283,3.52907,2833.6,2833.5,5.39]
[1740354933496,3.52882,2833.9,2833.5,5.929]
[1740354933696,3.52808,2834.4,2833.5,5.929]
[1740354933697,1.02958723,2834.5,2833.5,9.45809]
[1740354934010,3.52815,2834.4,2833.8,3.52874]
[1740354934521,0.26478723,2834.5,2833.8,5.39]
[1740354934666,3.52754,2834.9,2834.4,3.52808]
[1740354934864,3.52754,2834.9,2834.3,3.5281]
[1740354934865,3.52768,2834.8,2834.3,3.5281]
[1740354936033,0.4310181,2835.2,2834.7,3.52762]
[1740354936234,0.1520181,2835.2,2834.7,4.30789]
[1740354936434,0.1520181,2835.2,2834.9,3.52737]
[1740354936638,0.1520181,2835.2,2834.9,7.05475]
[1740354936817,0.1520181,2835.2,2834.9,3.52737]
[1740354938453,0.1520181,2835.2,2835.0,9.270067]
[1740354938606,0.1520181,2835.2,2835.0,9.270047]
[1740354938806,0.1520181,2835.2,2835.0,12.797197]
[1740354939038,0.1520181,2835.2,2835.0,9.269967]
[1740354940008,3.52721,2835.1,2835.0,5.39]
[1740354941155,3.52753,2834.9,2834.5,5.39]
[1740354941456,3.52782,2834.7,2834.5,5.39]
[1740354941753,3.52746,2834.9,2834.5,5.39]
[1740354942160,3.9035181,2835.2,2834.5,5.39]
[1740354942456,3.52783,2834.6,2834.5,5.39]
[1740354942609,3.52815,2834.4,2834.2,5.39]
[1740354943109,3.52833,2834.2,2834.0,5.39]
[1740354943608,3.52845,2834.1,2834.0,5.39]
[1740354944364,4.27948,2834.5,2833.8,5.39]
[1740354944658,3.5289,2833.8,2833.6,5.39]
[1740354945511,3.52895,2833.7,2833.6,5.39]
[1740354945713,3.5289,2833.8,2833.6,5.39]
[1740354945913,7.05784,2833.8,2833.6,5.39]
[1740354946257,3.52895,2833.7,2833.6,5.39]
[1740354946657,0.7515,2833.9,2833.1,6.2223]
[1740354946839,3.52929,2833.5,2833.1,8.078524]
[1740354947010,3.52936,2833.4,2833.1,8.078524]
[1740354947778,3.52945,2833.3,2833.1,8.078524]
[1740354948661,3.52936,2833.4,2833.1,8.078524]
[1740354948962,7.05877,2833.4,2833.1,8.078524]
[1740354949138,3.52936,2833.4,2833.1,8.078524]
[1740354949463,3.52995,2832.9,2832.8,5.39]
[1740354949758,3.52983,2833.0,2832.5,5.39]
[1740354949958,3.52996,2832.9,2832.5,5.39]
[1740354950111,3.52996,2832.9,2832.6,1.851238]
[1740354950311,3.52983,2833.0,2832.1,6.1771]
[1740354950312,3.53065,2832.4,2832.1,6.1771]
[1740354950517,3.53054,2832.5,2832.1,6.1771]
[1740354951536,3.53052,2832.5,2832.1,6.1771]
[1740354952063,7.06108,2832.5,2832.1,6.1771]
[1740354952266,3.53052,2832.5,2832.1,7.147916]
[1740354952864,7.06105,2832.5,2832.1,7.147916]
[1740354953246,3.53011,2832.8,2832.1,7.147916]
[1740354953560,3.53082,2832.2,2832.1,5.39]
[1740354954440,3.53119,2831.9,2831.8,5.39]
[1740354954648,3.53146,2831.7,2831.4,0.771]
[1740354954814,3.53119,2831.9,2831.4,4.91889]
[1740354955018,3.42057847,2832.3,2831.4,1.3871]
[1740354955365,3.531,2832.1,2831.6,3.53155]
[1740354955852,3.42057847,2832.3,2831.4,6.7771]
[1740354956069,3.53084,2832.2,2831.7,3.53136]
[1740354956279,7.06178,2832.2,2831.7,3.53136]
[1740354956479,3.53088,2832.2,2831.6,3.53156]
[1740354956968,3.53118,2832.0,2831.5,1.03087]
[1740354957176,7.06173,2832.2,2831.6,3.53156]
[1740354957339,3.53082,2832.2,2831.6,3.53156]
[1740354957529,3.53098,2832.1,2831.6,3.5315]
[1740354957731,3.53108,2832.0,2831.6,3.5315]
[1740354958844,3.53108,2832.0,2831.5,4.56254]
[1740354959342,3.53126,2831.9,2831.4,10.30881]
[1740354959545,3.79256258,2832.0,2831.5,3.53162]
[1740354960656,0.26148258,2832.0,2831.8,3.53128]
[1740354960863,0.26148258,2832.0,2831.7,3.53138]
[1740354961818,3.53103,2832.1,2831.6,3.53146]
[1740354962319,3.53103,2832.1,2831.6,4.915476]
[1740354963801,3.53103,2832.1,2831.7,3.53142]
[1740354963972,0.26848729,2832.2,2831.7,3.53142]
[1740354964172,3.79931729,2832.2,2831.7,3.53142]
[1740354964421,3.79931729,2832.2,2831.7,3.53138]
[1740354964920,3.79931729,2832.2,2831.7,8.92138]
[1740354965437,7.06202,2832.1,2831.7,5.39]
[1740354965639,3.79931729,2832.2,2831.7,8.92132]
[1740354965850,0.69691707,2832.4,2832.0,3.53107]
[1740354966139,4.22903245,2833.0,2832.5,4.32353]
[1740354966586,7.75895245,2833.0,2832.5,4.32353]
[1740354966789,3.53025,2832.7,2832.5,0.7932]
[1740354966988,7.06056,2832.7,2832.4,5.39]
[1740354967192,3.53025,2832.7,2832.4,5.39]
[1740354967632,0.69913245,2833.0,2832.4,5.39]
[1740354967837,0.26018447,2832.9,2832.5,3.53043]
[1740354968038,0.26018447,2832.9,2832.5,7.06076]
[1740354968407,0.26018447,2832.9,2832.5,3.53033]
[1740354968607,4.18517847,2833.5,2832.9,3.52985]
[1740354968919,0.70330743,2833.3,2832.8,0.7632]
[1740354969124,0.70330743,2833.3,2832.8,4.2932]
[1740354969328,4.23280743,2833.3,2832.8,4.2932]
[1740354970339,0.96736614,2833.3,2832.9,3.52993]
[1740354970637,0.96736614,2833.3,2833.0,3.5298]
[1740354970945,0.96736614,2833.3,2832.9,5.39]
[1740354971236,0.70330743,2833.3,2832.9,5.39]
[1740354971455,3.52982,2833.0,2832.9,5.39]
[1740354972018,3.42057847,2833.2,2832.9,5.39]
[1740354972291,3.5297,2833.1,2832.9,5.39]
[1740354974738,0.7648,2833.0,2832.9,5.39]
[1740354975439,3.5297,2833.1,2832.9,5.39]
[1740354976743,6.95015847,2833.2,2832.7,5.39]
[1740354976947,3.52958,2833.2,2832.8,3.53007]
[1740354977742,3.5297,2833.1,2832.7,9.9013773]
[1740354978246,3.5297,2833.1,2832.7,6.3712273]
[1740354979135,3.5297,2833.1,2832.7,5.29]
[1740354979728,3.52997,2832.9,2832.7,5.29]
[1740354980450,3.53007,2832.8,2832.7,5.29]
[1740354982003,2.73197349,2832.9,2832.7,5.29]
[1740354982203,6.26195349,2832.9,2832.7,5.29]
[1740354982751,6.26195349,2832.9,2832.4,8.82051]
[1740354983443,7.24113884,2832.9,2832.4,8.82051]
[1740354983743,6.26195349,2832.9,2832.4,8.82051]
[1740354984549,0.71316666,2832.8,2832.4,8.82051]
[1740354984937,4.24327666,2832.8,2832.4,8.82051]
[1740354987624,3.53045,2832.5,2831.8,5.29]
[1740354987939,2.73197349,2832.2,2831.8,5.29]
[1740354988321,6.26282349,2832.2,2831.8,5.29]
[1740354988529,2.73197349,2832.2,2831.8,8.82129]
[1740354988756,3.53075,2832.3,2831.8,8.82129]
[1740354988922,3.53075,2832.3,2831.8,8.82125]
[1740354989113,3.53085,2832.2,2831.8,5.29]
[1740354989441,3.00164296,2832.5,2832.1,3.53088]
[1740354989807,6.53209296,2832.5,2832.1,3.53088]
[1740354990004,6.53209296,2832.5,2832.0,3.53105]